fUST/lending_fUST_20250707
["ID","MTS","AMOUNT","RATE_DAILY","PERIOD"]
[370131951,1751895046760,-606.71,0.00019452,2]
[370131952,1751895046769,-460.0,0.00019452,2]
[370131953,1751895046779,-460.0,0.00019452,2]
[370131954,1751895046788,-202.14133071,0.00019452,2]
[370131955,1751895046797,-460.0,0.00019452,2]
[370131956,1751895046807,-460.0,0.00019452,2]
[370131957,1751895046816,-460.0,0.00019452,2]
[370131958,1751895046826,-460.0,0.00019452,2]
[370131959,1751895046835,-460.0,0.00019452,2]
[370131960,1751895046845,-606.54245627,0.00019452,2]
[370131962,1751895046854,-460.0,0.00019452,2]
[370131963,1751895046864,-460.0,0.00019452,2]
[370131965,1751895046874,-460.0,0.00019452,2]
[370131968,1751895046884,-460.0,0.00019452,2]
[370131969,1751895046894,-460.0,0.00019452,2]
[370131971,1751895046903,-460.0,0.00019452,2]
[370131974,1751895046912,-524.74,0.00019452,2]
[370131975,1751895046922,-496.15646281,0.00019452,2]
[370131978,1751895046931,-460.0,0.00019452,2]
[370131980,1751895046941,-460.0,0.00019452,2]
[370131982,1751895046950,-460.0,0.00019452,2]
[370131983,1751895046959,-460.0,0.00019452,2]
[370131986,1751895046969,-777.87,0.00019452,2]
[370131988,1751895046978,-460.0,0.00019452,2]
[370131990,1751895046988,-460.0,0.00019452,2]
[370131992,1751895046997,-460.0,0.00019452,2]
[370131994,1751895047007,-460.0,0.00019452,2]
[370131996,1751895047016,-460.0,0.00019452,2]
[370131998,1751895047025,-460.0,0.00019452,2]
[370132000,1751895047036,-460.0,0.00019452,2]
[370132002,1751895047045,-460.0,0.00019452,2]
[370132004,1751895047057,-460.0,0.00019452,2]
[370132006,1751895047066,-980.88,0.00019452,2]
[370132008,1751895047075,-460.0,0.00019452,2]
[370132010,1751895047086,-460.0,0.00019452,2]
[370132012,1751895047099,-460.0,0.00019452,2]
[370132014,1751895047109,-575.49,0.00019452,2]
[370132016,1751895047120,-460.0,0.00019452,2]
[370132018,1751895047132,-583.83536965,0.00019452,2]
[370132020,1751895047142,-500.0,0.00019473,2]
[370132022,1751895047152,-500.0,0.00019473,2]
[370132024,1751895047161,-460.0,0.00019725,2]
[370132026,1751895047171,-460.0,0.00019726,2]
[370132028,1751895047181,-460.0,0.00019726,2]
[370132030,1751895047190,-460.0,0.00019726,2]
[370132032,1751895047199,-460.0,0.00019726,2]
[370132034,1751895047209,-562.0,0.00019726,2]
[370132036,1751895047219,-460.0,0.00019726,2]
[370132038,1751895047229,-460.0,0.00019726,2]
[370132040,1751895047239,-877.33,0.00019726,2]
[370132042,1751895047249,-295.47,0.00019726,2]
[370132044,1751895047259,-460.0,0.00019726,2]
[370132047,1751895047269,-460.0,0.00019726,2]
[370132049,1751895047279,-152.82,0.00019726,2]
[370132051,1751895047288,-460.0,0.00019726,2]
[370132053,1751895047297,-460.0,0.00019726,2]
[370132055,1751895047307,-538.8,0.00019726,2]
[370132057,1751895047317,-460.0,0.00019726,2]
[370132059,1751895047326,-460.0,0.00019726,2]
[370132061,1751895047335,-526.25743062,0.00019726,2]
[370132063,1751895047345,-460.0,0.00019726,2]
[370132065,1751895047354,-460.0,0.00019726,2]
[370132067,1751895047364,-460.0,0.00019726,2]
[370132069,1751895047374,-460.0,0.00019726,2]
[370132071,1751895047383,-460.0,0.00019726,2]
[370132073,1751895047393,-460.0,0.00019726,2]
[370132075,1751895047403,-460.0,0.00019726,2]
[370132077,1751895047412,-460.0,0.00019726,2]
[370132078,1751895047422,-460.0,0.00019726,2]
[370132079,1751895047432,-460.0,0.00019726,2]
[370132080,1751895047442,-460.0,0.00019726,2]
[370132082,1751895047452,-460.0,0.00019726,2]
[370132084,1751895047462,-460.0,0.00019726,2]
[370132086,1751895047472,-460.0,0.00019726,2]
[370132088,1751895047482,-467.98,0.00019726,2]
[370132091,1751895047491,-460.0,0.00019726,2]
[370132093,1751895047502,-319.52,0.00019726,2]
[370132094,1751895047511,-460.0,0.00019726,2]
[370132097,1751895047521,-460.0,0.00019726,2]
[370132099,1751895047531,-460.0,0.00019726,2]
[370132100,1751895047540,-460.0,0.00019726,2]
[370132102,1751895047550,-460.0,0.00019726,2]
[370132104,1751895047559,-460.0,0.00019726,2]
[370132105,1751895047569,-460.0,0.00019726,2]
[370132106,1751895047579,-460.0,0.00019726,2]
[370132107,1751895047588,-189.47,0.00019726,2]
[370132108,1751895047597,-496.76,0.00019726,2]
[370132109,1751895047607,-460.0,0.00019726,2]
[370132110,1751895047617,-460.0,0.00019726,2]
[370132111,1751895047627,-460.0,0.00019726,2]
[370132112,1751895047636,-1604.65,0.00019726,2]
[370132113,1751895047646,-460.0,0.00019726,2]
[370132114,1751895047655,-606.71,0.00019726,2]
[370132115,1751895047665,-460.0,0.00019726,2]
[370132116,1751895047675,-460.0,0.00019726,2]
[370132117,1751895047684,-524.74,0.00019726,2]
[370132118,1751895047693,-460.0,0.00019726,2]
[370132119,1751895047703,-777.87,0.00019726,2]
[370132120,1751895047713,-460.0,0.00019726,2]
[370132121,1751895047722,-460.0,0.00019726,2]
[370132122,1751895047732,-460.0,0.00019726,2]
[370132123,1751895047742,-980.88,0.00019726,2]
[370132124,1751895047752,-460.0,0.00019726,2]
[370132125,1751895047761,-575.49,0.00019726,2]
[370132126,1751895047771,-460.0,0.00019726,2]
[370132127,1751895047780,-200.66988016,0.000199,2]
[370132128,1751895047790,-460.0,0.0002,2]
[370132129,1751895047799,-455.0,0.0002,2]
[370132130,1751895047809,-460.0,0.0002,2]
[370132131,1751895047818,-877.33,0.0002,2]
[370132132,1751895047828,-460.0,0.0002,2]
[370132133,1751895047838,-324.4942568,0.0002,2]
[370132134,1751895047848,-537.61036616,0.0002,2]
[370132135,1751895047858,-460.0,0.0002,2]
[370132136,1751895047870,-271.05,0.0002,2]
[370132137,1751895047880,-460.0,0.0002,2]
[370132138,1751895047890,-460.0,0.0002,2]
[370132139,1751895047899,-460.0,0.0002,2]
[370132140,1751895047910,-531.73,0.0002,2]
[370132141,1751895047921,-460.0,0.0002,2]
[370132142,1751895047930,-460.0,0.0002,2]
[370132143,1751895047940,-460.0,0.0002,2]
[370132144,1751895047950,-460.0,0.0002,2]
[370132145,1751895047960,-460.0,0.0002,2]
[370132146,1751895047970,-460.0,0.0002,2]
[370132147,1751895047980,-347.52215432,0.0002,2]
[370132148,1751895047990,-460.0,0.0002,2]
[370132149,1751895047999,-460.0,0.0002,2]
[370132150,1751895048009,-460.0,0.0002,2]
[370132151,1751895048018,-784.0,0.0002,2]
[370132152,1751895048028,-589.96,0.0002,2]
[370132153,1751895048037,-500.0,0.0002,2]
[370132154,1751895048047,-151.0,0.0002,2]
[370132155,1751895048061,-460.0,0.0002,2]
[370132156,1751895048071,-460.0,0.0002,2]
[370132157,1751895048081,-460.0,0.0002,2]
[370132158,1751895048091,-496.76,0.0002,2]
[370132159,1751895048101,-460.0,0.0002,2]
[370132160,1751895048112,-452.62538625,0.0002,2]
[370132161,1751895048123,-460.0,0.0002,2]
[370132162,1751895048135,-1604.65,0.0002,2]
[370132163,1751895048145,-460.0,0.0002,2]
[370132164,1751895048155,-606.71,0.0002,2]
[370132165,1751895048165,-186.53348416,0.0002,2]
[370132166,1751895048175,-151.0,0.0002,2]
[370132167,1751895048184,-460.0,0.0002,2]
[370132168,1751895048194,-460.0,0.0002,2]
[370132169,1751895048204,-524.74,0.0002,2]
[370132170,1751895048214,-777.87,0.0002,2]
[370132171,1751895048224,-222.57,0.0002,2]
[370132172,1751895048233,-460.0,0.0002,2]
[370132173,1751895048243,-980.88,0.0002,2]
[370132174,1751895048253,-460.0,0.0002,2]
[370132175,1751895048262,-575.49,0.0002,2]
[370132176,1751895048271,-1000.0,0.00020021,2]
[370132177,1751895048281,-524.06599004,0.00020021,2]
[370132178,1751895048291,-784.0,0.00020027,2]
[370132179,1751895048300,-500.0,0.00020027,2]
[370132180,1751895048309,-151.0,0.00020027,2]
[370132181,1751895048319,-784.0,0.00020055,2]
[370132182,1751895048328,-500.0,0.00020055,2]
[370132183,1751895048338,-151.0,0.00020055,2]
[370132184,1751895048348,-784.0,0.00020082,2]
[370132185,1751895048358,-500.0,0.00020082,2]
[370132186,1751895048368,-151.0,0.00020082,2]
[370132187,1751895048378,-848.27993403,0.00020106,2]
[370132188,1751895048388,-12584.46609586,0.00020106,2]
[370132189,1751895048398,-200.66988016,0.00020107,2]
[370132190,1751895048408,-215.21338352,0.00020107,2]
[370132191,1751895048418,-837.79946008,0.00020107,2]
[370132192,1751895048428,-160.0,0.00020107,2]
[370132193,1751895048439,-160.0,0.00020107,2]
[370132194,1751895048449,-214.06929976,0.00020107,2]
[370132195,1751895048459,-160.0,0.00020107,2]
[370132196,1751895048469,-230.48668418,0.00020107,2]
[370132197,1751895048480,-160.0,0.00020107,2]
[370132198,1751895048490,-160.0,0.00020107,2]
[370132199,1751895048500,-160.0,0.00020107,2]
[370132200,1751895048510,-160.0,0.00020108,2]
[370132201,1751895048520,-784.0,0.0002011,2]
[370132202,1751895048530,-500.0,0.0002011,2]
[370132203,1751895048541,-245.0,0.0002011,2]
[370132204,1751895048550,-784.0,0.00020137,2]
[370132205,1751895048560,-500.0,0.00020137,2]
[370132206,1751895048570,-784.0,0.00020164,2]
[370132207,1751895048581,-256.73739429,0.00020164,2]
[370132208,1751895048591,-784.0,0.00020192,2]
[370132209,1751895048602,-434.82246799,0.00020215,2]
[370132210,1751895048612,-784.0,0.00020219,2]
[370132211,1751895048624,-500.0,0.00020227,2]
[370132212,1751895048634,-500.0,0.00020227,2]
[370132213,1751895048644,-784.0,0.00020247,2]
[370132214,1751895048655,-877.33,0.00020273,2]
[370132215,1751895048664,-460.0,0.00020273,2]
[370132216,1751895048674,-460.0,0.00020273,2]
[370132217,1751895048684,-460.0,0.00020273,2]
[370132218,1751895048694,-460.0,0.00020273,2]
[370132219,1751895048704,-460.0,0.00020273,2]
[370132220,1751895048714,-394.57,0.00020273,2]
[370132221,1751895048724,-460.0,0.00020273,2]
[370132222,1751895048734,-460.0,0.00020273,2]
[370132223,1751895048744,-460.0,0.00020273,2]
[370132224,1751895048754,-460.0,0.00020273,2]
[370132225,1751895048764,-226.04,0.00020273,2]
[370132226,1751895048773,-460.0,0.00020273,2]
[370132227,1751895048783,-460.0,0.00020273,2]
[370132228,1751895048792,-460.0,0.00020273,2]
[370132229,1751895048802,-460.0,0.00020273,2]
[370132230,1751895048811,-460.0,0.00020273,2]
[370132231,1751895048821,-361.8,0.00020273,2]
[370132232,1751895048830,-496.76,0.00020273,2]
[370132233,1751895048840,-460.0,0.00020273,2]
[370132234,1751895048850,-547.55,0.00020273,2]
[370132235,1751895048859,-1604.65,0.00020273,2]
[370132236,1751895048870,-460.0,0.00020273,2]
[370132237,1751895048880,-606.71,0.00020273,2]
[370132238,1751895048889,-362.53,0.00020273,2]
[370132239,1751895048899,-460.0,0.00020273,2]
[370132240,1751895048909,-524.74,0.00020273,2]
[370132241,1751895048919,-777.87,0.00020273,2]
[370132242,1751895048929,-460.0,0.00020273,2]
[370132243,1751895048939,-980.88,0.00020273,2]
[370132244,1751895048949,-460.0,0.00020273,2]
[370132245,1751895048960,-575.49,0.00020273,2]
[370132246,1751895048970,-784.0,0.00020274,2]
[370132247,1751895048980,-784.0,0.00020301,2]
[370132248,1751895048989,-355.527084,0.00020312,2]
[370132249,1751895048999,-200.66988016,0.00020314,3]
[370132250,1751895049009,-500.0,0.00020329,2]
[370132251,1751895049019,-784.0,0.00020329,2]
[370132252,1751895049029,-428.5386218,0.00020356,2]
[370132253,1751895049152,-784.0,0.00020356,2]
[370132254,1751895049162,-784.0,0.00020384,2]
[370132255,1751895049172,-784.0,0.00020411,2]
[370132256,1751895049182,-784.0,0.00020438,2]
[370132257,1751895049191,-784.0,0.00020466,2]
[370132258,1751895049201,-784.0,0.00020493,2]
[370132259,1751895049210,-784.0,0.00020521,2]
[370132260,1751895049220,-200.66988016,0.00020521,3]
[370132261,1751895049229,-1231.28,0.00020538,3]
[370132262,1751895049239,-615.64,0.00020538,3]
[370132263,1751895049248,-307.82,0.00020538,3]
[370132264,1751895049258,-151.0,0.00020538,2]
[370132265,1751895049267,-151.0,0.00020538,2]
[370132266,1751895049277,-161.820325,0.00020538,2]
[370132267,1751895049286,-161.820325,0.00020538,2]
[370132268,1751895049296,-151.0,0.00020538,2]
[370132269,1751895049305,-151.0,0.00020538,2]
[370132270,1751895049314,-166.914918,0.00020538,2]
[370132271,1751895049323,-1734.83326839,0.00020544,3]
[370132272,1751895049333,-877.33,0.00020547,2]
[370132273,1751895049342,-237.04,0.00020547,2]
[370132274,1751895049351,-460.0,0.00020547,2]
[370132275,1751895049360,-460.0,0.00020547,2]
[370132276,1751895049371,-460.0,0.00020547,2]
[370132277,1751895049381,-460.0,0.00020547,2]
[370132278,1751895049390,-460.0,0.00020547,2]
[370132279,1751895049400,-460.0,0.00020547,2]
[370132280,1751895049410,-460.0,0.00020547,2]
[370132281,1751895049419,-460.0,0.00020547,2]
[370132282,1751895049429,-460.0,0.00020547,2]
[370132283,1751895049438,-460.0,0.00020547,2]
[370132284,1751895049447,-460.0,0.00020547,2]
[370132285,1751895049457,-460.0,0.00020547,2]
[370132286,1751895049466,-496.76,0.00020547,2]
[370132287,1751895049476,-460.0,0.00020547,2]
[370132288,1751895049486,-1604.65,0.00020547,2]
[370132289,1751895049496,-460.0,0.00020547,2]
[370132290,1751895049505,-606.71,0.00020547,2]
[370132291,1751895049515,-151.0,0.00020547,2]
[370132292,1751895049525,-151.0,0.00020547,2]
[370132293,1751895049535,-460.0,0.00020547,2]
[370132294,1751895049544,-151.0,0.00020547,2]
[370132295,1751895049554,-524.74,0.00020547,2]
[370132296,1751895049564,-151.0,0.00020547,2]
[370132297,1751895049574,-777.87,0.00020547,2]
[370132298,1751895049583,-151.0,0.00020547,2]
[370132299,1751895049593,-163.84,0.00020547,2]
[370132300,1751895049602,-151.0,0.00020547,2]
[370132301,1751895049612,-980.88,0.00020547,2]
[370132302,1751895049621,-460.0,0.00020547,2]
[370132303,1751895049631,-575.49,0.00020547,2]
[370132304,1751895049640,-784.0,0.00020548,2]
[370132305,1751895049650,-500.0,0.0002055,2]
[370132306,1751895049660,-500.0,0.0002055,2]
[370132307,1751895049669,-500.0,0.0002055,2]
[370132308,1751895049679,-500.0,0.0002055,2]
[370132309,1751895049688,-500.0,0.0002055,2]
[370132310,1751895049697,-500.0,0.0002055,2]
[370132311,1751895049707,-500.0,0.0002055,2]
[370132312,1751895049716,-500.0,0.0002055,2]
[370132313,1751895049725,-500.0,0.0002055,2]
[370132314,1751895049734,-500.0,0.0002055,2]
[370132315,1751895049743,-500.0,0.0002055,2]
[370132316,1751895049753,-500.0,0.0002055,2]
[370132317,1751895049762,-600.0,0.0002055,2]
[370132318,1751895049771,-500.0,0.0002055,2]
[370132319,1751895049780,-508.31206158,0.0002055,2]
[370132320,1751895049789,-501.8141145,0.0002055,2]
[370132321,1751895049798,-500.46494259,0.0002055,2]
[370132322,1751895049808,-500.0,0.0002055,2]
[370132323,1751895049817,-500.0,0.0002055,2]
[370132324,1751895049826,-500.0,0.0002055,2]
[370132325,1751895049836,-500.0,0.0002055,2]
[370132326,1751895049845,-784.0,0.00020575,2]
[370132327,1751895049855,-1288.95,0.000206,2]
[370132328,1751895049864,-784.0,0.00020603,2]
[370132329,1751895049873,-433.861,0.00020623,2]
[370132330,1751895049883,-803.17210654,0.0002063,2]
[370132331,1751895049893,-157.874257,0.00020635,2]
[370132332,1751895049903,-791.08140482,0.00020652,2]
[370132333,1751895049912,-200.66988016,0.00020728,3]
[370132334,1751895049921,-157.874257,0.00020729,2]
[370132335,1751895049930,-1000.0,0.00020775,2]
[370132336,1751895049939,-500.0,0.00020775,2]
[370132337,1751895049949,-151.0,0.00020775,2]
[370132338,1751895049958,-151.0,0.00020775,2]
[370132339,1751895049967,-877.33,0.00020821,2]
[370132340,1751895049977,-460.0,0.00020821,2]
[370132341,1751895049986,-460.0,0.00020821,2]
[370132342,1751895049995,-460.0,0.00020821,2]
[370132343,1751895050004,-460.0,0.00020821,2]
[370132344,1751895050014,-460.0,0.00020821,2]
[370132345,1751895050023,-460.0,0.00020821,2]
[370132346,1751895050032,-460.0,0.00020821,2]
[370132347,1751895050041,-151.0,0.00020821,2]
[370132348,1751895050051,-460.0,0.00020821,2]
[370132349,1751895050063,-460.0,0.00020821,2]
[370132350,1751895050073,-460.0,0.00020821,2]
[370132351,1751895050082,-460.0,0.00020821,2]
[370132352,1751895050091,-460.0,0.00020821,2]
[370132353,1751895050100,-496.76,0.00020821,2]
[370132354,1751895050110,-460.0,0.00020821,2]
[370132355,1751895050120,-1604.65,0.00020821,2]
[370132356,1751895050130,-608.7,0.00020821,2]
[370132357,1751895050140,-606.71,0.00020821,2]
[370132358,1751895050150,-460.0,0.00020821,2]
[370132359,1751895050159,-524.74,0.00020821,2]
[370132360,1751895050169,-777.87,0.00020821,2]
[370132361,1751895050178,-980.88,0.00020821,2]
[370132362,1751895050188,-157.874257,0.00020824,2]
[370132363,1751895050198,-3529.12,0.00020841,2]
[370132364,1751895050208,-12669.49864974,0.00020876,2]
[370132365,1751895050218,-32046.32099833,0.00020876,2]
[370132366,1751895050228,-4000.0,0.00020898,2]
[370132367,1751895050238,-157.874257,0.00020918,2]
[370132368,1751895050247,-200.66988016,0.00020934,4]
[370132369,1751895050256,-6000.0,0.00020942,2]
[370132370,1751895050266,-157.874257,0.00021013,2]
[370132371,1751895050275,-177.763542,0.00021041,2]
[370132372,1751895050285,-153.0,0.00021041,2]
[370132373,1751895050294,-159.4922776,0.00021041,2]
[370132374,1751895050303,-177.763542,0.00021041,2]
[370132375,1751895050313,-159.4922776,0.00021041,2]
[370132376,1751895050322,-177.763542,0.00021041,2]
[370132377,1751895050332,-576.0368563,0.00021041,2]
[370132378,1751895050341,-576.0368563,0.00021041,2]
[370132379,1751895050350,-177.0649041,0.00021041,2]
[370132380,1751895050359,-159.4922776,0.00021041,2]
[370132381,1751895050370,-576.0368563,0.00021041,2]
[370132382,1751895050379,-576.0368563,0.00021041,2]
[370132383,1751895050389,-159.4922776,0.00021041,2]
[370132384,1751895050399,-576.0368563,0.00021041,2]
[370132385,1751895050408,-877.33,0.00021095,2]
[370132386,1751895050417,-151.0,0.00021095,2]
[370132387,1751895050426,-460.0,0.00021095,2]
[370132388,1751895050435,-460.0,0.00021095,2]
[370132389,1751895050445,-151.0,0.00021095,2]
[370132390,1751895050454,-269.06,0.00021095,2]
[370132391,1751895050463,-151.0,0.00021095,2]
[370132392,1751895050472,-460.0,0.00021095,2]
[370132393,1751895050482,-596.114482,0.00021095,2]
[370132394,1751895050491,-460.0,0.00021095,2]
[370132395,1751895050500,-596.114482,0.00021095,2]
[370132396,1751895050510,-460.0,0.00021095,2]
[370132397,1751895050520,-302.87769265,0.00021095,2]
[370132398,1751895050529,-460.0,0.00021095,2]
[370132399,1751895050539,-460.0,0.00021095,2]
[370132400,1751895050548,-460.0,0.00021095,2]
[370132401,1751895050558,-460.0,0.00021095,2]
[370132402,1751895050567,-460.0,0.00021095,2]
[370132403,1751895050577,-496.76,0.00021095,2]
[370132404,1751895050586,-460.0,0.00021095,2]
[370132405,1751895050596,-1604.65,0.00021095,2]
[370132406,1751895050605,-606.71,0.00021095,2]
[370132407,1751895050615,-460.0,0.00021095,2]
[370132408,1751895050626,-524.74,0.00021095,2]
[370132409,1751895050636,-777.87,0.00021095,2]
[370132410,1751895050645,-980.88,0.00021095,2]
[370132411,1751895050655,-1000.0,0.00021098,2]
[370132412,1751895050664,-1137.30663764,0.00021098,2]
[370132413,1751895050673,-1000.0,0.00021098,2]
[370132414,1751895050682,-277.42294643,0.00021098,2]
[370132415,1751895050692,-1000.0,0.00021098,2]
[370132416,1751895050701,-1000.0,0.00021098,2]
[370132417,1751895050711,-1000.0,0.00021098,2]
[370132418,1751895050720,-1000.0,0.00021098,2]
[370132419,1751895050729,-1000.0,0.00021098,2]
[370132420,1751895050738,-612.39333012,0.00021098,2]
[370132421,1751895050747,-1000.0,0.00021098,2]
[370132422,1751895050757,-1200.0,0.00021098,2]
[370132423,1751895050766,-1000.0,0.00021098,2]
[370132424,1751895050776,-222.04728116,0.00021098,2]
[370132425,1751895050785,-1000.0,0.00021098,2]
[370132426,1751895050795,-157.874257,0.00021107,2]
[370132427,1751895050804,-226.21857077,0.00021134,2]
[370132428,1751895050954,-174.33789783,0.00021134,2]
[370132429,1751895050964,-355.527084,0.00021135,2]
[370132430,1751895050973,-181.5045785,0.00021135,2]
[370132431,1751895050983,-159.4922776,0.00021135,2]
[370132432,1751895050993,-576.0368563,0.00021135,2]
[370132433,1751895051002,-159.4922776,0.00021135,2]
[370132434,1751895051012,-576.0368563,0.00021135,2]
[370132435,1751895051021,-159.4922776,0.00021135,2]
[370132436,1751895051030,-576.0368563,0.00021135,2]
[370132437,1751895051040,-159.4922776,0.00021135,2]
[370132438,1751895051050,-576.0368563,0.00021135,2]
[370132439,1751895051062,-1152.0737126,0.00021135,2]
[370132440,1751895051072,-153.0,0.00021135,2]
[370132441,1751895051081,-200.66988016,0.00021141,4]
[370132442,1751895051091,-500.0,0.00021191,2]
[370132443,1751895051101,-157.874257,0.00021201,2]
[370132444,1751895051111,-157.874257,0.00021296,2]
[370132445,1751895051121,-428.5386218,0.00021315,2]
[370132446,1751895051131,-543.0732697,0.00021315,2]
[370132447,1751895051140,-366.6942869,0.00021315,2]
[370132448,1751895051149,-677.050906,0.00021323,2]
[370132449,1751895051159,-200.66988016,0.00021348,5]
[370132450,1751895051168,-877.33,0.00021369,2]
[370132451,1751895051177,-151.0,0.00021369,2]
[370132452,1751895051187,-180.66758,0.00021369,2]
[370132453,1751895051196,-180.66758,0.00021369,2]
[370132454,1751895051205,-151.0,0.00021369,2]
[370132455,1751895051214,-460.0,0.00021369,2]
[370132456,1751895051224,-460.0,0.00021369,2]
[370132457,1751895051233,-151.0,0.00021369,2]
[370132458,1751895051243,-460.0,0.00021369,2]
[370132459,1751895051252,-460.0,0.00021369,2]
[370132460,1751895051261,-449.96,0.00021369,2]
[370132461,1751895051271,-460.0,0.00021369,2]
[370132462,1751895051281,-460.0,0.00021369,2]
[370132463,1751895051290,-460.0,0.00021369,2]
[370132464,1751895051299,-151.0,0.00021369,2]
[370132465,1751895051309,-151.0,0.00021369,2]
[370132466,1751895051319,-161.820325,0.00021369,2]
[370132467,1751895051328,-460.0,0.00021369,2]
[370132468,1751895051338,-161.820325,0.00021369,2]
[370132469,1751895051347,-288.76,0.00021369,2]
[370132470,1751895051357,-151.0,0.00021369,2]
[370132471,1751895051366,-496.76,0.00021369,2]
[370132472,1751895051376,-460.0,0.00021369,2]
[370132473,1751895051385,-1604.65,0.00021369,2]
[370132474,1751895051395,-606.71,0.00021369,2]
[370132475,1751895051404,-151.0,0.00021369,2]
[370132476,1751895051415,-151.0,0.00021369,2]
[370132477,1751895051424,-227.779677,0.00021369,2]
[370132478,1751895051433,-460.0,0.00021369,2]
[370132479,1751895051443,-151.0,0.00021369,2]
[370132480,1751895051452,-234.914972,0.00021369,2]
[370132481,1751895051462,-524.74,0.00021369,2]
[370132482,1751895051472,-777.87,0.00021369,2]
[370132483,1751895051481,-151.0,0.00021369,2]
[370132484,1751895051491,-980.88,0.00021369,2]
[370132485,1751895051501,-157.874257,0.0002139,2]
[370132486,1751895051510,-157.874257,0.00021485,2]
[370132487,1751895051520,-252.126305,0.00021538,2]
[370132488,1751895051529,-252.126305,0.00021538,2]
[370132489,1751895051540,-180.002054,0.00021538,2]
[370132490,1751895051550,-151.0,0.00021538,2]
[370132491,1751895051559,-151.0,0.00021538,2]
[370132492,1751895051569,-690.642,0.00021538,2]
[370132493,1751895051578,-151.0,0.00021538,2]
[370132494,1751895051587,-151.0,0.00021538,2]
[370132495,1751895051597,-151.0,0.00021538,2]
[370132496,1751895051606,-151.0,0.00021538,2]
[370132497,1751895051615,-151.0,0.00021538,2]
[370132498,1751895051741,-151.0,0.00021538,2]
[370132499,1751895051751,-151.0,0.00021538,2]
[370132500,1751895051761,-298.60925501,0.00021538,2]
[370132501,1751895051771,-5000.0,0.00021538,2]
[370132502,1751895051780,-1500.0,0.00021538,2]
[370132503,1751895051790,-500.0,0.00021538,2]
[370132504,1751895051800,-216.53714914,0.00021538,2]
[370132505,1751895051810,-500.0,0.00021538,2]
[370132506,1751895051819,-1500.0,0.00021538,2]
[370132507,1751895051829,-1500.0,0.00021538,2]
[370132508,1751895051839,-500.0,0.00021538,2]
[370132509,1751895051849,-500.0,0.00021538,2]
[370132510,1751895051858,-500.0,0.00021538,2]
[370132511,1751895051869,-3420.18147752,0.00021538,2]
[370132512,1751895051879,-500.0,0.00021538,2]
[370132513,1751895051889,-1500.0,0.00021538,2]
[370132514,1751895051898,-500.0,0.00021538,2]
[370132515,1751895051909,-1500.0,0.00021538,2]
[370132516,1751895051918,-500.0,0.00021538,2]
[370132517,1751895051928,-1500.0,0.00021538,2]
[370132518,1751895051938,-500.0,0.00021538,2]
[370132519,1751895051947,-500.0,0.00021538,2]
[370132520,1751895051957,-1500.0,0.00021538,2]
[370132521,1751895051967,-500.0,0.00021538,2]